Workbook

Sheet Rate
C2: Розрахунок витрат за кредитом "Кредитна лінія під заставу депозиту"
C3: Вихідні параметри | Y3: =AC21+AD21+AC22+AD22 -> 3258.90411
B4: Вид продукту | E4: КЛ під депозит | AF4: факт/360 | AG4: 1
B5: Приблизна дата видачі кредиту | E5: 2025-04-01 | H5: Метод нарахування процентних доходів | M5: факт/факт | X5: Грн | Z5: іноземна | AF5: факт/факт | AG5: 2
B6: Строк кредитування | E6: 12 | F6: 1-12 міс | H6: Термін дії кредиту відповідає строку дії картки | M6: Ні | Z6: 19.5
B7: Сума кредиту, грн | E7: 100000 | W7: 2 | X7: за депозитами фізичних осіб без права дострокового розірвання (від 93 днів) | Y7: 2.5 | AF7: Бонус | AG7: 3 | AH7: 24
B8: Процентна ставка, % річних | E8: =IF(M8="національна",IF(M10=X6,M9+Y6,IF(M10=X7,M9+Y7,M9+Y8)),Z6) -> 19.5 | H8: Валюта депозиту: національна або іноземна | M8: іноземна | W8: 3 | X8: за депозитами юридичних осіб | Y8: 2.5 | AH8: 36
B9: Місяць початку погашення основного боргу | E9: 12 | F9: 1 або = строку кредиту | H9: % ставка за депозитом у нац валюті, який є заставою за кредитом | M9: 12.5 | N9: якщо "іноземна", не обирати | AF9: Тепле житло | AG9: 5
B10: Загальні витрати по кредиту | E10: =D202+SUM(H18:S18)-E7-K18 -> 20746.57534 | H10: Вид депозиту | M10: за депозитами фізичних осіб без права дострокового розірвання (від 93 днів) | AF10: КЛ під депозит | AI10: національна
I11: поля підлягають коригуванню | AI11: іноземна
A13: Місяці | B13: Дата | C13: Кількість днів | D13: Сума платежу за розрахунковий період | E13: У тому числі: | T13: Орієнтовна реальна процентна ставка, % | U13: Орієнтовна загальна вартість кредиту, грн | X13: Кількість днів для розрахунку %% - для 1го періоду | Y13: Кількість днів для розрахунку %% - для останнього періоду | Z13: Кількість днів для розрахунку %% - до 20 числа | AA13: Кількість днів для розрахунку %% - після 20 числа | AB13: 360/365/366 | AC13: 1й та останній міс | AD13: Інші періоди | AF13: =DAY(B20) -> 1 | AG13: =MONTH(B20) -> 4 | AH13: =YEAR(B20) -> 2025
E14: Погашення основної суми кредиту | F14: Проценти за користування кредитом | G14: Залишок заборгованості | H14: Платежі за надані додаткові та/або супутні послуги на користь банку, у тому числі за: | N14: Плажеті за надані додаткові та/або супутні послуги на користь третіх осіб, пов'язаних із: | AF14: =IF(OR($E$4="Картки",$E$4="Кредитка"),IF($M$6="Так",IF($AG$13>=25,(E6+1)+1,E6+1),E$6),IF($M$6="Так",IF($AG$13>=25,(E6+1)+1,E6+1),E$6)) -> 12 | AG14: срок по карточкам в зависимости от параметра
AF15: =IF(OR($E$4="Картки",$E$4="Кредитка"),IF($M$6="Так",IF($AG$13>=25,(E9+1)+1,E9+1),E9),IF($M$6="Так",IF($AG$13>=25,(E9+1)+1,E9+1),E9)) -> 12 | AG15: срок начала погашения
AF16: =DAY(W20) -> 30 | AG16: =MONTH(W20) -> 4 | AH16: =YEAR(W20) -> 2025
H17: Комісія за надання кредиту, % | I17: Розрахунково касове обслуговування, % | J17: За надання кредиту готівкою, % | K17: За безготівкове перерахування кредитних коштів, % | L17: Відкриття та ведення поточного рахунку, грн | M17: Інші послуги банку (зазначається на назва послуги), грн | N17: Страхуванням працездатності, % | O17: Страхуванням цивільної відповідальності, грн | P17: Страхуванням іпотеки/ застави (КАСКО), % | Q17: послугами нотаріусів, грн | R17: послугами оцінювача, грн | S17: Іншими послугами третіх осіб, грн
A18: Всього: | B18: X | C18: X | D18: X | E18: =SUM(E21:E201) -> 100000 | F18: =SUM(F21:F201) -> 19446.57534 | G18: X | H18: =SUM(H20:H201) -> 0 | I18: 0 | J18: =SUM(J20:J201) -> 800 | K18: =SUM(K20:K201) -> 1000 | L18: =SUM(L20:L201) -> 500 | M18: 0 | N18: 0 | O18: 0 | P18: 0 | Q18: 0 | R18: 0 | S18: 0
H19: 0 | I19: 0 | J19: 0.008 | K19: 0.01 | L19: 500 | Q19: 0
A20: 0 | B20: =$E$5 -> 2025-04-01 | D20: =H18+I18+J18+L18+M18+N18+O18+P18+Q18+R18+S18-E7 -> -98700 | E20: =IFERROR((IF(B20="","",IF(E$4="Кредитка",IF(A20<AF$14,G19*10%,G19),IF(A20<$AF$15,0,G19/($AF$14-A20+1))))),0) -> 0 | F20: =IF(A20>$E$6+1,"",IF(A20<>$E$6,AC19+AD19,AC19+AD19+AC20+AD20)) -> 0 | G20: =E7 -> 100000 | H20: =G20*H19 -> 0 | I20: =G20*I19 -> 0 | J20: =IF(E7*J19>=5,E7*J19,5) -> 800 | K20: =IF(G20*K19>=1500,1500,IF(G20*K19<=100,100,G20*K19)) -> 1000 | L20: =L19 -> 500 | M20: =M19 -> 0 | N20: =$N$19*G20 -> 0 | O20: =$O$19*G20 -> 0 | Q20: 0 | R20: =M7*E6/12 -> 0 | S20: =S19 -> 0 | T20: =XIRR(INDIRECT("D20:"&"D"&COUNT(Rate!D20:D200)+19),INDIRECT("B20:"&"B"&COUNT(Rate!B20:B200)+19),1) -> 0.2285663821 | U20: =SUM(D202,H18,I18,J18,L18,M18,N18,O18,P18,Q18,R18,S18) -> 120746.5753 | W20: =EOMONTH(B20,0) -> 2025-04-30 | X20: =IF(B20=$E$5,W20-B20+1,0) -> 30 | Y20: =IF(A20=0,0,IF(A20=$E$6,DAY(B20)-1,0)) -> 0 | Z20: =IF(OR(X20<>0,Y20<>0),0,20) -> 0 | AA20: =IF(Z20=0,0,DAY(W20)-Z20) -> 0 | AB20: =CHOOSE(VLOOKUP($M$5,$AF$4:$AG$5,2,0),36000,IF(MONTH(DATE(YEAR(B20),2,29))=2,36600,36500)) -> 36500 | AC20: =IF(X20<>0,$G20*$E$8*X20/AB20,IF(Y20<>0,$G19*$E$8*Y20/AB20,0)) -> 1602.739726 | AD20: =IF(AC20<>0,0,(G19*$E$8*Z20/AB20)+(G20*$E$8*AA20/AB20)) -> 0
A21: =IF(A20>=$E$6,"",A20+1) -> 1 | B21: =IF(A21=E$6,DATE($AH$13,$AG$13+A21,$AF$13-1),IF(A21>$E$6,"",DATE($AH$13,$AG$13+A21,"20"))) -> 2025-05-20 | C21: =IF(B21="","",EOMONTH(B20,0)-B20+1) -> 30 | D21: =IF(B21="","",E21+F21+I21+M21+N21+O21+P21+Q21+R21+S21) -> 1602.739726 | E21: 0 | F21: =IF(A21>$E$6+1,"",IF(A21<>$E$6,AC20+AD20,IF(DAY($E$5)=1,AC21,IF(DAY($E$5)=2,AC20+AD20,AC20+AD20+AC21+AD21)))) -> 1602.739726 | G21: =IF(B21="","",G20-E21) -> 100000 | W21: 2025-05-31 | X21: =IF(B21=$E$5,W21-B21+1,0) -> 0 | Y21: 0 | Z21: =IF(OR(X21<>0,Y21<>0),0,20) -> 20 | AA21: =IF(Z21=0,0,DAY(W21)-Z21) -> 11 | AB21: 36500 | AC21: =IF(X21<>0,$G21*$E$8*X21/AB21,IF(Y21<>0,$G20*$E$8*Y21/AB21,0)) -> 0 | AD21: =IF(AC21<>0,0,(G20*$E$8*Z21/AB21)+(G21*$E$8*AA21/AB21)) -> 1656.164384
A22: 2 | B22: =IF(A22=E$6,DATE($AH$13,$AG$13+A22,$AF$13-1),IF(A22>$E$6,"",DATE($AH$13,$AG$13+A22,"20"))) -> 2025-06-20 | C22: =IF(B22="","",IF(AND(DAY($E$5)=1,A22=$E$6),DAY(B22)-1,IF(AND(DAY(B22)=20,DAY(B21)=20),B22-B21,IF(AND(DAY(B22)=20,DAY(B21)<20),W21-B21+1,IF(W20="",W21-B21+DAY(B22),W21-W20+DAY(B22)))))) -> 31 | D22: 1656.164384 | E22: =IFERROR((IF(B22="","",IF(E$4="Кредитка",IF(A22<AF$14,G21*10%,G21),IF(A22<$AF$15,0,G21/($AF$14-A22+1))))),0) -> 0 | F22: 1656.164384 | G22: =IF(B22="","",G21-E22) -> 100000 | W22: 2025-06-30 | X22: 0 | Y22: 0 | Z22: =IF(OR(X22<>0,Y22<>0),0,20) -> 20 | AA22: =IF(Z22=0,0,DAY(W22)-Z22) -> 10 | AB22: 36500 | AC22: 0 | AD22: =IF(AC22<>0,0,(G21*$E$8*Z22/AB22)+(G22*$E$8*AA22/AB22)) -> 1602.739726
A23: 3 | B23: 2025-07-20 | C23: 30 | D23: 1602.739726 | E23: 0 | F23: 1602.739726 | G23: 100000 | W23: 2025-07-31 | X23: 0 | Y23: 0 | Z23: 20 | AA23: 11 | AB23: 36500 | AC23: 0 | AD23: 1656.164384
A24: 4 | B24: 2025-08-20 | C24: 31 | D24: 1656.164384 | E24: 0 | F24: 1656.164384 | G24: 100000 | W24: =EOMONTH(B24,0) -> 2025-08-31 | X24: 0 | Y24: =IF(A24=0,0,IF(A24=$E$6,DAY(B24)-1,0)) -> 0 | Z24: 20 | AA24: 11 | AB24: 36500 | AC24: 0 | AD24: 1656.164384
A25: 5 | B25: 2025-09-20 | C25: 31 | D25: 1656.164384 | E25: 0 | F25: =IF(A25>$E$6+1,"",IF(A25<>$E$6,AC24+AD24,IF(DAY($E$5)=1,AC25,IF(DAY($E$5)=2,AC24+AD24,AC24+AD24+AC25+AD25)))) -> 1656.164384 | G25: 100000 | W25: 2025-09-30 | X25: =IF(B25=$E$5,W25-B25+1,0) -> 0 | Y25: 0 | Z25: 20 | AA25: 10 | AB25: 36500 | AC25: =IF(X25<>0,$G25*$E$8*X25/AB25,IF(Y25<>0,$G24*$E$8*Y25/AB25,0)) -> 0 | AD25: 1602.739726
A26: 6 | B26: 2025-10-20 | C26: 30 | D26: 1602.739726 | E26: 0 | F26: 1602.739726 | G26: 100000 | W26: 2025-10-31 | X26: 0 | Y26: 0 | Z26: =IF(OR(X26<>0,Y26<>0),0,20) -> 20 | AA26: =IF(Z26=0,0,DAY(W26)-Z26) -> 11 | AB26: 36500 | AC26: 0 | AD26: =IF(AC26<>0,0,(G25*$E$8*Z26/AB26)+(G26*$E$8*AA26/AB26)) -> 1656.164384
A27: 7 | B27: 2025-11-20 | C27: 31 | D27: 1656.164384 | E27: 0 | F27: 1656.164384 | G27: 100000 | W27: 2025-11-30 | X27: 0 | Y27: 0 | Z27: 20 | AA27: 10 | AB27: 36500 | AC27: 0 | AD27: 1602.739726
A28: 8 | B28: 2025-12-20 | C28: 30 | D28: 1602.739726 | E28: 0 | F28: 1602.739726 | G28: 100000 | W28: 2025-12-31 | X28: 0 | Y28: 0 | Z28: 20 | AA28: 11 | AB28: 36500 | AC28: 0 | AD28: 1656.164384
A29: 9 | B29: 2026-01-20 | C29: 31 | D29: 1656.164384 | E29: 0 | F29: 1656.164384 | G29: 100000 | W29: 2026-01-31 | X29: 0 | Y29: 0 | Z29: 20 | AA29: 11 | AB29: 36500 | AC29: 0 | AD29: 1656.164384
A30: 10 | B30: 2026-02-20 | C30: 31 | D30: 1656.164384 | E30: 0 | F30: 1656.164384 | G30: 100000 | W30: 2026-02-28 | X30: 0 | Y30: 0 | Z30: 20 | AA30: 8 | AB30: 36500 | AC30: 0 | AD30: 1495.890411
A31: 11 | B31: 2026-03-20 | C31: 28 | D31: 1495.890411 | E31: 0 | F31: 1495.890411 | G31: 100000 | W31: 2026-03-31 | X31: 0 | Y31: 0 | Z31: 20 | AA31: 11 | AB31: 36500 | AC31: 0 | AD31: 1656.164384
A32: 12 | B32: 2026-03-31 | C32: =IF(B32="","",IF(AND(DAY($E$5)=1,A32=$E$6),DAY(B32)-1,IF(AND(DAY(B32)=20,DAY(B31)=20),B32-B31,IF(AND(DAY(B32)=20,DAY(B31)<20),W31-B31+1,IF(W30="",W31-B31+DAY(B32),W31-W30+DAY(B32)))))) -> 30 | D32: 101602.7397 | E32: 100000 | F32: 1602.739726 | G32: 0 | W32: 2026-03-31 | X32: 0 | Y32: 30 | Z32: 0 | AA32: 0 | AB32: 36500 | AC32: 1602.739726 | AD32: 0
C33: =IF(B33="","",IF(AND(DAY(B33)=20,DAY(B32)=20),B33-B32,IF(AND(DAY(B33)=20,DAY(B32)<20),W32-B32+1,IF(W31="",W32-B32+DAY(B33),W32-W31+DAY(B33))))) ->  | F33: =IF(A33>$E$6+1,"",IF(A33<>$E$6,AC32+AD32,AC32+AD32+AC33+AD33)) ->  | X33: 0 | Y33: 0 | Z33: 20 | AC33: 0
X34: 0 | Y34: 0 | Z34: 20 | AC34: 0
X35: 0 | Y35: 0 | Z35: 20 | AC35: 0
X36: 0 | Y36: 0 | Z36: 20 | AC36: 0
X37: 0 | Y37: 0 | Z37: 20 | AC37: 0
X38: 0 | Y38: 0 | Z38: 20 | AC38: 0
X39: 0 | Y39: 0 | Z39: 20 | AC39: 0
X40: 0 | Y40: 0 | Z40: 20 | AC40: 0
X41: 0 | Y41: 0 | Z41: 20 | AC41: 0
X42: 0 | Y42: 0 | Z42: 20 | AC42: 0
X43: 0 | Y43: 0 | Z43: 20 | AC43: 0
X44: 0 | Y44: 0 | Z44: 20 | AC44: 0
X45: 0 | Y45: 0 | Z45: 20 | AC45: 0
X46: 0 | Y46: 0 | Z46: 20 | AC46: 0
X47: 0 | Y47: 0 | Z47: 20 | AC47: 0
X48: 0 | Y48: 0 | Z48: 20 | AC48: 0
X49: 0 | Y49: 0 | Z49: 20 | AC49: 0
X50: 0 | Y50: 0 | Z50: 20 | AC50: 0
X51: 0 | Y51: 0 | Z51: 20 | AC51: 0
X52: 0 | Y52: 0 | Z52: 20 | AC52: 0
D53: =IF(B53="","",E53+F53+I53+M53+N53+O53+P53+Q53+R53+S53) ->  | X53: 0 | Y53: 0 | Z53: 20 | AC53: 0
X54: 0 | Y54: 0 | Z54: 20 | AC54: 0
X55: 0 | Y55: 0 | Z55: 20 | AC55: 0
X56: 0 | Y56: 0 | Z56: 20 | AC56: 0
A85: =IF(A84>=$E$6,"",A84+1) ->  | D85: =IF(B85="","",E85+F85+I85+M85+N85+O85+P85+Q85+R85+S85) -> 
B86: =IF(A86=E$6,DATE($AH$13,$AG$13+A86,$AF$13-1),IF(A86>$E$6,"",DATE($AH$13,$AG$13+A86,"20"))) ->  | C86: =IF(B86="","",IF(AND(DAY(B86)=20,DAY(B85)=20),B86-B85,IF(AND(DAY(B86)=20,DAY(B85)<20),W85-B85+1,IF(W84="",W85-B85+DAY(B86),W85-W84+DAY(B86))))) ->  | E86: =IFERROR((IF(B86="","",IF(E$4="Кредитка",IF(A86<AF$14,G85*10%,G85),IF(A86<$AF$15,0,G85/($AF$14-A86+1))))),0) ->  | F86: =IF(A86>$E$6+1,"",IF(A86<>$E$6,AC85+AD85,AC85+AD85+AC86+AD86)) ->  | G86: =IF(B86="","",G85-E86) -> 
D117: =IF(B117="","",E117+F117+I117+M117+N117+O117+P117+Q117+R117+S117) -> 
A149: =IF(A148>=$E$6,"",A148+1) ->  | D149: =IF(B149="","",E149+F149+I149+M149+N149+O149+P149+Q149+R149+S149) -> 
B150: =IF(A150=E$6,DATE($AH$13,$AG$13+A150,$AF$13-1),IF(A150>$E$6,"",DATE($AH$13,$AG$13+A150,"20"))) ->  | C150: =IF(B150="","",IF(AND(DAY(B150)=20,DAY(B149)=20),B150-B149,IF(AND(DAY(B150)=20,DAY(B149)<20),W149-B149+1,IF(W148="",W149-B149+DAY(B150),W149-W148+DAY(B150))))) ->  | E150: =IFERROR((IF(B150="","",IF(E$4="Кредитка",IF(A150<AF$14,G149*10%,G149),IF(A150<$AF$15,0,G149/($AF$14-A150+1))))),0) ->  | F150: =IF(A150>$E$6+1,"",IF(A150<>$E$6,AC149+AD149,AC149+AD149+AC150+AD150)) ->  | G150: =IF(B150="","",G149-E150) -> 
D181: =IF(B181="","",E181+F181+I181+M181+N181+O181+P181+Q181+R181+S181) -> 
B201: =IF($E$4="Картки",IF(A201>$AG$14," ",EOMONTH($B$20,A200)),IF($E$4="КЛ під депозит",IF(A201=AG$14,EOMONTH($B$20,A200),DATE($AI$13,$AH$13+A201,"20")),IF(A201=AG$14,EOMONTH($B$20,A200),DATE($AI$13,$AH$13+A201,"20")))) -> 2068-09-20 | D201: =IF(B201=" "," ",E201+F201+I201+M201) -> 0 | E201: =IFERROR((IF(B201="","",IF(E$4="Кредитка",IF(A201<AF$14,G200*10%,G200),IF(A201<$AF$15,0,G200/($AF$14-A201+1))))),0) -> 0
A202: Усього: | D202: =SUM(D21:D201) -> 119446.5753 | E202: =SUM(E21:E201) -> 100000 | F202: =SUM(F21:F201) -> 19446.57534
A204: Всі платежі в Таблиці обчислення орієнтовної загальної вартості кредиту та орієнтовної реальної річної процентної ставки (далі - Таблиця) наведені у гривні. Наведена Таблиця є репрезентативною та базується на обраних позичальником умовах кредитування, та на припущенні, що кредит позичальником буде отримано в повному обсязі відповідно до суми, встановленої кредитним договором, а погашення кредиту буде проводитись відповідно до графіку, визначеного кредитним договором, кредитний договір залишатиметься дійсним протягом всього строку кредитування, а Банк і позичальник виконають свої обов’язки на умовах та у строки, визначені в кредитному договорі. Орієнтовна реальна річна процентна ставка обчислена на основі припущення, що кредитні кошти видано готівкою та процентна ставка та інші платежі за додаткові та супутні послуги Банку залишатимуться незмінними та застосовуватимуться протягом строку дії кредитного договору. Орієнтовна вартість додаткової / супутньої послуги третіх осіб визначається Банком за аналогічними, вже укладеними договорами про споживчий кредит за попередні три місяці, або у разі відсутності таких договорів за середньою вартістю такої послуги, визначеною Банком за результатами аналізу вартості послуг, що пропонуються щонайменше трьома постачальниками на ринку таких послуг. Використання інших способів надання кредиту та/або зміна інших умов кредитування можуть мати наслідком застосування іншої реальної річної процентної ставки для позичальника. Протягом строку дії кредитного договору значення орієнтовної реальної річної процентної ставки може змінюватися як в сторону збільшення, так і в сторону зменшення. У цьому випадку зміни до Таблиці не вносяться (якщо таке не вимагає одна зі сторін).
